fUST/lending_fUST_20251231
["ID","MTS","AMOUNT","RATE_DAILY","PERIOD"]
[400168802,1767166245118,-2500.0,0.00015464,2]
[400168804,1767166245128,-2500.0,0.00015464,2]
[400168806,1767166245138,-2500.0,0.00015464,2]
[400168808,1767166245148,-2500.0,0.00015464,2]
[400168810,1767166245158,-2500.0,0.00015464,2]
[400168811,1767166245168,-5296.88,0.00015699,2]
[400168812,1767166245178,-1208.97595015,0.00015864,2]
[400168813,1767166245189,-1534.26049156,0.0001589,2]
[400168814,1767166245199,-903.04207638,0.0001589,2]
[400168815,1767166245209,-418.31768676,0.0001589,2]
[400168816,1767166245220,-651.60877791,0.0001589,2]
[400168817,1767166245230,-1005.31532944,0.0001589,2]
[400168818,1767166245241,-500.0,0.0001589,2]
[400168819,1767166245251,-1508.82384523,0.0001589,2]
[400168820,1767166245261,-1039.92702157,0.0001589,2]
[400168821,1767166245271,-2500.0,0.0001589,2]
[400168822,1767166245280,-503.64865922,0.0001589,2]
[400168823,1767166245290,-386.3706875,0.0001589,2]
[400168824,1767166245300,-500.0,0.0001589,2]
[400168825,1767166245310,-777.52543131,0.0001589,2]
[400168826,1767166245320,-299.59970903,0.0001589,2]
[400168827,1767166245330,-1535.35417784,0.0001589,2]
[400168828,1767166245339,-550.74198848,0.0001589,2]
[400168829,1767166245349,-574.09930708,0.0001589,2]
[400168830,1767166245359,-504.59975832,0.0001589,2]
[400168831,1767166245368,-2500.0,0.0001589,2]
[400168832,1767166245378,-379.37902934,0.0001589,2]
[400168833,1767166245387,-500.0,0.0001589,2]
[400168834,1767166245397,-2005.55305045,0.0001589,2]
[400168835,1767166245407,-695.14400231,0.0001589,2]
[400168836,1767166245417,-2500.0,0.0001589,2]
[400168837,1767166245427,-480.71714518,0.0001589,2]
[400168838,1767166245436,-500.0,0.0001589,2]
[400168839,1767166245446,-3000.0,0.00016012,2]
[400168840,1767166245456,-3000.0,0.00016012,2]
[400168841,1767166245466,-3000.0,0.00016012,2]
[400168842,1767166245476,-3000.0,0.00016012,2]
[400168843,1767166245485,-2505.99987486,0.00016012,2]
[400168844,1767166245495,-3000.0,0.00016012,2]
[400168845,1767166245506,-3000.0,0.00016012,2]
[400168846,1767166245515,-3000.0,0.00016012,2]
[400168848,1767166245525,-3000.0,0.00016012,2]
[400168850,1767166245536,-3000.0,0.00016012,2]
[400168852,1767166245545,-6053.58,0.0001628,2]
[400168854,1767166245555,-1152.0,0.00016328,2]
[400168856,1767166245565,-500.0,0.00016438,2]
[400168858,1767166245575,-500.0,0.00016438,2]
[400168859,1767166245585,-637.58528706,0.00016438,2]
[400168861,1767166245595,-1383.15755431,0.00016438,2]
[400168863,1767166245605,-3000.0,0.00016438,2]
[400168865,1767166245616,-3000.0,0.00016438,2]
[400168867,1767166245627,-200.0,0.00016473,2]
[400168869,1767166245637,-1000.0,0.00016504,2]
[400168871,1767166245647,-151.0,0.00016504,2]
[400168872,1767166245659,-162.62076672,0.00016504,2]
[400168873,1767166245669,-151.0,0.00016504,2]
[400168874,1767166245679,-496.47127164,0.00016504,2]
[400168876,1767166245689,-181.08010149,0.00016504,2]
[400168877,1767166245699,-250.0,0.00016504,2]
[400168878,1767166245708,-250.0,0.00016504,2]
[400168879,1767166245719,-257.39953178,0.00016504,2]
[400168880,1767166245730,-250.0,0.00016504,2]
[400168881,1767166245740,-250.0,0.00016504,2]
[400168882,1767166245750,-250.0,0.00016504,2]
[400168883,1767166245764,-2398.4119403,0.00016504,2]
[400168884,1767166245774,-168.96815401,0.00016504,2]
[400168886,1767166245784,-151.0,0.00016504,2]
[400168888,1767166245795,-250.0,0.00016504,2]
[400168890,1767166245807,-500.0,0.00016504,2]
[400168891,1767166245817,-250.0,0.00016504,2]
[400168893,1767166245827,-500.0,0.00016504,2]
[400168895,1767166245838,-250.0,0.00016504,2]
[400168897,1767166245848,-500.0,0.00016504,2]
[400168899,1767166245861,-250.0,0.00016504,2]
[400168901,1767166245871,-151.0,0.00016504,2]
[400168902,1767166245881,-500.0,0.00016504,2]
[400168903,1767166245891,-250.0,0.00016504,2]
[400168904,1767166245900,-151.0,0.00016504,2]
[400168905,1767166245910,-500.0,0.00016504,2]
[400168906,1767166245920,-250.0,0.00016504,2]
[400168907,1767166245930,-151.0,0.00016504,2]
[400168908,1767166245940,-500.0,0.00016504,2]
[400168909,1767166245950,-151.0,0.00016504,2]
[400168910,1767166245960,-500.0,0.00016504,2]
[400168911,1767166245970,-151.0,0.00016504,2]
[400168912,1767166245983,-500.0,0.00016504,2]
[400168913,1767166245993,-151.0,0.00016504,2]
[400168914,1767166246003,-500.0,0.00016504,2]
[400168915,1767166246013,-151.0,0.00016504,2]
[400168916,1767166246023,-500.0,0.00016504,2]
[400168917,1767166246033,-151.0,0.00016504,2]
[400168918,1767166246042,-500.0,0.00016504,2]
[400168919,1767166246052,-151.0,0.00016504,2]
[400168920,1767166246061,-500.0,0.00016504,2]
[400168921,1767166246071,-151.0,0.00016504,2]
[400168922,1767166246081,-500.0,0.00016504,2]
[400168923,1767166246090,-151.0,0.00016504,2]
[400168924,1767166246100,-500.0,0.00016504,2]
[400168925,1767166246111,-500.0,0.00016504,2]
[400168927,1767166246121,-151.0,0.00016504,2]
[400168928,1767166246131,-151.0,0.00016504,2]
[400168929,1767166246140,-151.0,0.00016504,2]
[400168930,1767166246150,-151.0,0.00016504,2]
[400168931,1767166246159,-3500.0,0.0001656,2]
[400168932,1767166246169,-3347.53001016,0.0001656,2]
[400168933,1767166246179,-2588.85772816,0.0001656,2]
[400168934,1767166246189,-3500.0,0.0001656,2]
[400168935,1767166246199,-3500.0,0.0001656,2]
[400168936,1767166246209,-2576.89571839,0.0001656,2]
[400168937,1767166246219,-3500.0,0.0001656,2]
[400168938,1767166246228,-3500.0,0.0001656,2]
[400168939,1767166246238,-3500.0,0.0001656,2]
[400168940,1767166246249,-6810.28,0.00016862,2]
[400168941,1767166246258,-1000.0,0.00016888,2]
[400168942,1767166246269,-244.0,0.00016888,2]
[400168943,1767166246278,-3500.0,0.00016986,2]
[400168944,1767166246288,-3500.0,0.00016986,2]
[400168945,1767166246299,-514.84070869,0.00017052,2]
[400168946,1767166246309,-2436.59773527,0.00017052,2]
[400168947,1767166246319,-151.0,0.00017052,2]
[400168948,1767166246329,-3922.38060374,0.00017108,2]
[400168949,1767166246339,-4000.0,0.00017108,2]
[400168950,1767166246349,-1530.88192264,0.00017108,2]
[400168951,1767166246359,-4000.0,0.00017108,2]
[400168952,1767166246369,-861.9082954,0.00017108,2]
[400168953,1767166246378,-3017.91360693,0.00017108,2]
[400168954,1767166246388,-494.86804536,0.00017207,2]
[400168955,1767166246398,-1174.16213624,0.0001734,2]
[400168956,1767166246407,-7566.97,0.00017443,2]
[400168957,1767166246417,-1651.58290824,0.00017534,2]
[400168958,1767166246427,-4000.0,0.00017534,2]
[400168959,1767166246437,-533.88981491,0.000176,2]
[400168960,1767166246447,-151.0,0.000176,2]
[400168961,1767166246457,-3008.31856485,0.00017656,2]
[400168962,1767166246466,-2468.24952751,0.00017656,2]
[400168963,1767166246477,-250.0,0.000178,2]
[400168964,1767166246486,-17693.77277791,0.000178,3]
[400168965,1767166246497,-151.50260762,0.00017873,2]
[400168966,1767166246507,-186.0,0.00017931,2]
[400168967,1767166246516,-1613.0,0.00017939,2]
[400168968,1767166246526,-2296.36705751,0.00018,2]
[400168969,1767166246536,-553.64373807,0.00018148,2]
[400168970,1767166246545,-163.026084,0.00018493,2]
[400168971,1767166246555,-1000.0,0.00018577,2]
[400168972,1767166246565,-492.0,0.00018577,2]
[400168973,1767166246575,-9925.60811242,0.00018643,2]
[400168974,1767166246585,-574.12855637,0.00018696,2]
[400168975,1767166246595,-302.90913937,0.000189,2]
[400168976,1767166246604,-302.90913937,0.000189,2]
[400168977,1767166246615,-302.90913937,0.00019089,2]
[400168978,1767166246624,-302.90913937,0.00019089,2]
[400168979,1767166246634,-500.0,0.00019178,2]
[400168980,1767166246645,-500.0,0.00019178,2]
[400168981,1767166246655,-167.95184871,0.00019178,2]
[400168982,1767166246666,-500.0,0.00019178,2]
[400168983,1767166246675,-500.0,0.00019178,2]
[400168984,1767166246685,-500.0,0.00019178,2]
[400168985,1767166246695,-500.0,0.00019178,2]
[400168986,1767166246705,-500.0,0.00019178,2]
[400168987,1767166246715,-500.0,0.00019178,2]
[400168988,1767166246724,-150.0,0.00019178,2]
[400168989,1767166246734,-162.4,0.000192,2]
[400168990,1767166246743,-1380.56,0.000192,2]
[400168991,1767166246754,-14885.98,0.000192,2]
[400168992,1767166246763,-166.25,0.000192,2]
[400168993,1767166246773,-166.47,0.000192,2]
[400168994,1767166246783,-552.70976495,0.00019207,2]
[400168995,1767166246793,-595.37131296,0.00019244,2]
[400168996,1767166246803,-302.90913937,0.00019278,2]
[400168997,1767166246812,-302.90913937,0.00019278,2]
[400168998,1767166246822,-62025.04066446,0.00019301,2]
[400168999,1767166246832,-300.0,0.00019315,2]
[400169000,1767166246842,-1000.0,0.000194,2]
[400169001,1767166246851,-450.0,0.00019452,2]
[400169002,1767166246862,-302.90913937,0.00019467,2]
[400169003,1767166246871,-302.90913937,0.00019467,2]
[400169004,1767166246881,-1174.16213624,0.00019511,2]
[400169005,1767166246890,-600.0,0.00019589,2]
[400169006,1767166246900,-302.90913937,0.00019656,2]
[400169007,1767166246910,-302.90913937,0.00019656,2]
[400169008,1767166246920,-186.0,0.00019676,2]
[400169009,1767166246930,-2258.0,0.00019709,2]
[400169010,1767166246941,-406.55106819,0.00019726,2]
[400169011,1767166246951,-617.40005154,0.00019792,2]
[400169012,1767166246960,-454.36370906,0.00019845,4]
[400169013,1767166246970,-454.36370906,0.00019845,4]
[400169014,1767166246983,-6831.4225511,0.000199,2]
[400169015,1767166246992,-1003.0,0.0002,2]
[400169016,1767166247002,-156288.085422,0.0002,2]
[400169017,1767166247015,-1105.62734024,0.0002,2]
[400169018,1767166247028,-278.66254871,0.0002,2]
[400169019,1767166247037,-179.55824252,0.0002,2]
[400169020,1767166247047,-210.2468972,0.0002,2]
[400169021,1767166247059,-1162.7799583,0.0002,2]
[400169022,1767166247100,-418.94279744,0.0002,2]
[400169023,1767166247109,-260.56094938,0.0002,7]
[400169024,1767166247119,-394.73148624,0.0002,2]
[400169025,1767166247129,-2000.0,0.0002,7]
[400169026,1767166247138,-156.190121,0.0002,2]
[400169027,1767166247147,-156.190121,0.0002,2]
[400169028,1767166247157,-156.190121,0.0002,2]
[400169029,1767166247166,-156.190121,0.0002,2]
[400169030,1767166247176,-151.0,0.0002,2]
[400169031,1767166247185,-151.0,0.0002,2]
[400169032,1767166247194,-454.36370906,0.00020034,4]
[400169033,1767166247204,-454.36370906,0.00020034,4]
[400169034,1767166247213,-962.386448,0.00020187,2]
[400169035,1767166247222,-454.36370906,0.00020223,4]
[400169036,1767166247232,-454.36370906,0.00020223,4]
[400169037,1767166247241,-1041.66666667,0.00020258,2]
[400169038,1767166247251,-640.24385345,0.0002034,2]
[400169039,1767166247260,-454.36370906,0.00020412,4]
[400169040,1767166247270,-454.36370906,0.00020412,4]
[400169041,1767166247279,-1000.0,0.00020435,2]
[400169042,1767166247288,-791.0,0.00020435,2]
[400169043,1767166247298,-196.24795557,0.00020601,4]
[400169044,1767166247307,-453.98526189,0.00020601,4]
[400169045,1767166247317,-663.93287602,0.00020888,2]
[400169046,1767166247326,-501.19,0.00021,7]
[400169047,1767166247335,-10000.0,0.00021,5]
[400169048,1767166247345,-30030.19718622,0.00021,2]
[400169049,1767166247355,-8846.86,0.000212,3]
[400169050,1767166247365,-610.55148454,0.00021207,2]
[400169051,1767166247375,-186.0,0.00021422,2]
[400169052,1767166247386,-2000.0,0.00021429,7]
[400169053,1767166247396,-688.49839244,0.00021436,2]
[400169054,1767166247405,-111233.6717484,0.000215,2]
[400169055,1767166247415,-3162.0,0.00021653,2]
[400169056,1767166247424,-1174.16213624,0.00021681,2]
[400169057,1767166247433,-233.96989355,0.00021716,5]
[400169058,1767166247442,-6831.4225511,0.00021853,2]
[400169059,1767166247452,-166.25,0.000219,2]
[400169060,1767166247461,-500.0,0.00021917,2]
[400169061,1767166247471,-503.00820269,0.00021917,2]
[400169062,1767166247480,-506.55449777,0.00021917,2]
[400169063,1767166247490,-500.0,0.00021917,2]
[400169064,1767166247499,-388.31492034,0.00021917,2]
[400169065,1767166247509,-500.0,0.00021917,2]
[400169066,1767166247518,-277.46495324,0.00021917,2]
[400169067,1767166247527,-181.58814641,0.00021917,2]
[400169068,1767166247537,-419.55533198,0.00021917,2]
[400169069,1767166247546,-572.01801726,0.00021917,2]
[400169070,1767166247555,-793.64,0.00021917,2]
[400169071,1767166247564,-224.92658771,0.00021917,2]
[400169072,1767166247573,-3532.14,0.00021917,2]
[400169073,1767166247582,-1423.54,0.00021917,2]
[400169074,1767166247593,-500.0,0.00021917,2]
[400169075,1767166247602,-500.0,0.00021917,2]
[400169076,1767166247612,-12464.72,0.00021917,2]
[400169077,1767166247622,-1388.45,0.00021917,2]
[400169078,1767166247632,-163.026084,0.00021918,2]
[400169079,1767166247646,-150.0,0.00021918,2]
[400169080,1767166247656,-217.89847528,0.00021965,2]
[400169081,1767166247666,-713.97283296,0.00021984,2]
[400169082,1767166247676,-290.88,0.00022,2]
[400169083,1767166247685,-160.73,0.00022,7]
[400169084,1767166247695,-422.18560449,0.00022191,2]
[400169085,1767166247704,-518.18840294,0.00022191,2]
[400169086,1767166247714,-510.62079878,0.00022191,2]
[400169087,1767166247723,-793.64,0.00022191,2]
[400169088,1767166247732,-3532.14,0.00022191,2]
[400169089,1767166247742,-1423.54,0.00022191,2]
[400169090,1767166247754,-500.0,0.00022191,2]
[400169091,1767166247764,-562.74320886,0.00022191,2]
[400169092,1767166247774,-12464.72,0.00022191,2]
[400169093,1767166247783,-1388.45,0.00022191,2]
[400169094,1767166247793,-14885.98,0.000222,2]
[400169095,1767166247803,-2453.88298309,0.000222,2]
[400169096,1767166247813,-793.64,0.00022465,2]
[400169097,1767166247822,-3532.14,0.00022465,2]
[400169098,1767166247832,-1423.54,0.00022465,2]
[400169099,1767166247841,-500.0,0.00022465,2]
[400169100,1767166247851,-12464.72,0.00022465,2]
[400169101,1767166247860,-1388.45,0.00022465,2]
[400169102,1767166247871,-300.0,0.00022466,2]
[400169103,1767166247881,-1000.0,0.00022479,10]
[400169104,1767166247890,-1000.0,0.00022479,10]
[400169105,1767166247900,-1380.56,0.000225,14]
[400169106,1767166247910,-740.38982778,0.00022532,2]
[400169107,1767166247919,-166.61935698,0.00022603,7]
[400169108,1767166247930,-2453.88298309,0.00022606,2]
[400169109,1767166247940,-793.64,0.00022739,2]
[400169110,1767166247951,-3532.14,0.00022739,2]
[400169111,1767166247966,-1423.54,0.00022739,2]
[400169112,1767166247981,-472.89680193,0.00022739,2]
[400169113,1767166247993,-12464.72,0.00022739,2]
[400169114,1767166248009,-1388.45,0.00022739,2]
[400169115,1767166248022,-711603.04446346,0.0002277,2]
[400169116,1767166248033,-151.0,0.0002277,2]
[400169117,1767166248047,-151.0,0.0002277,2]
[400169118,1767166248062,-2000.0,0.00022857,7]
[400169119,1767166248072,-2453.88298309,0.00022859,2]
[400169120,1767166248082,-8028.51183462,0.00023,2]
[400169121,1767166248092,-1041.66666667,0.00023,3]
[400169122,1767166248101,-793.64,0.00023013,2]
[400169123,1767166248111,-3532.14,0.00023013,2]
[400169124,1767166248121,-1423.54,0.00023013,2]
[400169125,1767166248131,-12464.72,0.00023013,2]
[400169126,1767166248141,-1388.45,0.00023013,2]
[400169127,1767166248151,-425.96070951,0.00023014,2]
[400169128,1767166248162,-767.7842514,0.0002308,2]
[400169129,1767166248180,-186.0,0.00023167,2]
[400169130,1767166248197,-668.39320413,0.00023207,2]
[400169131,1767166248207,-2453.88298309,0.00023226,2]
[400169132,1767166248216,-793.64,0.00023287,2]
[400169133,1767166248225,-1384.295523,0.00023287,2]
[400169134,1767166248234,-1384.295523,0.00023287,2]
[400169135,1767166248243,-1384.295523,0.00023287,2]
[400169136,1767166248252,-1384.295523,0.00023287,2]
[400169137,1767166248261,-3532.14,0.00023287,2]
[400169138,1767166248271,-1423.54,0.00023287,2]
[400169139,1767166248280,-151.0,0.00023287,2]
[400169140,1767166248289,-158.312179,0.00023287,2]
[400169141,1767166248299,-12464.72,0.00023287,2]
[400169142,1767166248309,-1388.45,0.00023287,2]
[400169143,1767166248319,-2453.88298309,0.00023475,2]
[400169144,1767166248328,-793.64,0.00023561,2]
[400169145,1767166248338,-3532.14,0.00023561,2]
[400169146,1767166248347,-1423.54,0.00023561,2]
[400169147,1767166248356,-12464.72,0.00023561,2]
[400169148,1767166248366,-1388.45,0.00023561,2]
[400169149,1767166248376,-214.28696878,0.00023615,2]
[400169150,1767166248386,-796.19226871,0.00023628,2]
[400169151,1767166248396,-2453.88298309,0.00023712,2]
[400169152,1767166248406,-532.8812695,0.0002379,2]
[400169153,1767166248539,-1340.016455,0.0002379,2]
[400169154,1767166248567,-500.0,0.00013698,2]
[400169155,1767166248577,-838.1022755,0.0002379,2]
[400169156,1767166248587,-130.30316109,0.00023806,2]
[400169157,1767166248598,-677.42648617,0.00023806,2]
[400169158,1767166249000,-3e-08,0.00013698,2]
[400169159,1767166249019,-499.99999997,0.00013698,2]
[400169160,1767166249028,-500.0,0.00013698,2]
[400169161,1767166249037,-151.0,0.0002,2]
[400169162,1767166249047,-156.562526,0.0002277,2]
[400169163,1767166249058,-6023.69290384,0.00023806,2]
[400169164,1767166249068,-200.90977335,0.00023835,2]
[400169165,1767166249077,-793.64,0.00023835,2]
[400169166,1767166249088,-1858.83541629,0.00023835,2]
[400169167,1767166249377,10000.01,0.00011203,2]
[400169168,1767166249438,10000.01,0.00011203,2]
[400169169,1767166249496,10000.01,0.00011203,2]
[400169170,1767166249556,10000.01,0.00011203,2]
[400169171,1767166249616,10000.01,0.00011203,2]
[400169172,1767166249673,10000.01,0.00011203,2]
[400169173,1767166249732,10000.01,0.00011203,2]
[400169174,1767166249791,10000.01,0.00011203,2]
[400169175,1767166249852,10000.01,0.00011203,2]
[400169176,1767166249914,10000.01,0.00011203,2]
[400169177,1767166249942,-18158.29728928,0.00011203,2]
[400169178,1767166249953,-311.0,0.00011203,2]
[400169179,1767166250511,-2474.26974324,0.00011203,2]
[400169180,1767166250522,-871.85190565,0.00011203,2]
[400169181,1767166273562,225.63281174,0.00011193,2]
[400169182,1767166303126,312.865,0.00010979,2]
[400169183,1767166366243,188.39,0.0001,2]
[400169184,1767166368113,188.39,0.000102,2]
[400169185,1767166369972,188.39,0.000104,2]
[400169214,1767166498855,-300.0,0.00011201,2]
[400169215,1767166498925,-1200.0,0.00011201,2]
[400169216,1767166498995,-300.0,0.00011201,2]
[400169217,1767166501342,300.0,0.00011201,2]
[400169218,1767166502275,300.0,0.00011201,2]
[400169219,1767166508359,300.0,0.00011201,2]
[400169220,1767166510281,1200.0,0.00011201,2]
[400169221,1767166563022,300.0,0.00011201,2]
[400169228,1767166576200,-318.45602887,0.00011201,2]
[400169237,1767166597076,-3173.32095924,0.00011202,2]
[400169238,1767166597275,-10000.01,0.00011202,2]
[400169239,1767166597511,-10000.01,0.00011202,2]
[400169240,1767166597716,-10000.01,0.00011202,2]
[400169241,1767166597891,-10000.01,0.00011202,2]
[400169242,1767166613704,5000.0,0.00011022,2]
[400169250,1767166629635,4371.28053781,0.00011022,2]
[400169251,1767166632689,628.72946219,0.00010356,2]
[400169252,1767166632747,2946.11846581,0.00010356,2]
[400169253,1767166637519,2260.65328874,0.00011022,2]
[400169254,1767166653077,291.3799864,0.00010356,2]
[400169256,1767166727218,299.8,0.0001,2]
[400169257,1767166729230,299.8,0.000102,2]
[400169258,1767166731111,299.8,0.000104,2]
[400169259,1767166732980,299.8,0.000106,2]
[400169260,1767166734866,299.8,0.000108,2]
[400169289,1767166854556,630.79775075,0.00010811,2]
[400169290,1767166903116,312.09,0.00010979,2]
[400169291,1767166903180,184.00470644,0.00010979,2]
[400169292,1767166910144,150.64,0.0001,2]
[400169293,1767166912026,150.64,0.000102,2]
[400169294,1767166929021,-312.08690829,0.00011,2]
[400169295,1767166929086,-574.0,0.00011,2]
[400169296,1767166944087,-207.35873939,0.00011101,2]
[400169303,1767166959344,-300.0,0.00011151,2]
[400169312,1767166970531,1526.3857125,0.00010276,2]
[400169323,1767166974758,-150.0,0.00011152,2]
[400169324,1767166974821,-203.05185779,0.00011152,2]
[400169325,1767166974885,-206.87843062,0.00011152,2]
[400169326,1767166974953,-500.0,0.00011152,2]
[400169327,1767166975016,-500.0,0.00011152,2]
[400169328,1767166975091,-150.0,0.00011152,2]
[400169329,1767166975168,-202.63669157,0.00011152,2]
[400169330,1767166975365,-163.84512541,0.00011152,2]
[400169331,1767166975440,-186.93979994,0.00011152,2]
[400169332,1767166975508,-209.25266303,0.00011152,2]
[400169333,1767166975577,-500.0,0.00011152,2]
[400169334,1767166975644,-500.0,0.00011152,2]
[400169335,1767166982530,300.0,0.00011151,2]
[400169338,1767166993066,1200.0,0.00011151,2]
[400169339,1767167042619,300.0,0.00011151,2]
[400169348,1767167077727,500.0,0.00010933,2]
[400169349,1767167077873,500.0,0.0001107,2]
[400169350,1767167091527,449.97168192,0.00011107,2]
[400169351,1767167101362,181.0,0.00011151,2]
[400169352,1767167102111,300.0,0.00011151,2]
[400169353,1767167108623,180.0,0.00011151,2]
[400169354,1767167109153,1200.0,0.00011151,2]
[400169358,1767167190252,4446.6487256,0.00010203,2]
[400169823,1767167246139,-312.47812478,0.00011177,2]
[400169824,1767167246161,-453.06862128,0.00011201,2]
[400169860,1767167283105,10000.01,0.00011102,2]
[400169861,1767167283176,10000.01,0.00011102,2]
[400169862,1767167283247,10000.01,0.00011102,2]
[400169863,1767167283326,10000.01,0.00011102,2]
[400169864,1767167283404,10000.01,0.00011102,2]
[400169865,1767167283473,10000.01,0.00011102,2]
[400169866,1767167283545,10000.01,0.00011102,2]
[400169867,1767167283615,10000.01,0.00011102,2]
[400169868,1767167283688,10000.01,0.00011102,2]
[400169877,1767167294362,-1218.74160507,0.00010991,2]
[400169882,1767167297579,-169.33706153,0.00010991,2]
[400169883,1767167299750,-182.82210834,0.00010991,2]
[400169884,1767167302396,-266.87925266,0.00010991,2]
[400169885,1767167315501,10000.0,0.00010194,2]
[400169887,1767167352583,0.01,0.00010411,2]
[400169888,1767167352642,249.99,0.00010411,2]
[400169889,1767167360079,-348.45228743,0.00010991,2]
[400169890,1767167360574,-2813.76768497,0.00010991,2]
[400169891,1767167379146,4385.16068082,0.00011101,2]
[400169894,1767167401300,300.0,0.000111,2]
[400169895,1767167402317,300.0,0.000111,2]
[400169896,1767167402515,300.0,0.000111,2]
[400169897,1767167408292,300.0,0.000111,2]
[400169898,1767167409701,1200.0,0.000111,2]
[400169899,1767167412373,500.0,0.00010933,2]
[400169900,1767167412525,500.0,0.0001107,2]
[400169939,1767167432074,-12188.99085826,0.00011101,2]
[400169943,1767167432111,-825.0,0.00011101,2]
[400169948,1767167432154,-1779.00510183,0.00011101,2]
[400169981,1767167438210,-5848.75866296,0.00011101,2]
[400169982,1767167438221,-16920.75758473,0.00011101,2]
[400169983,1767167438233,-4391.23581549,0.00011101,2]
[400169984,1767167438246,-4295.9564416,0.00011101,2]
[400169985,1767167438258,-1888.3931287,0.00011101,2]
[400169986,1767167438270,-1861.90240643,0.00011101,2]
[400169987,1767167438279,-445.84751859,0.00011101,2]
[400169988,1767167438290,-54.15248141,0.00011101,2]
[400169989,1767167438299,-630.4108713,0.00011101,2]
[400169990,1767167438308,-276.31967316,0.00011101,2]
[400169991,1767167438319,-15.43120308,0.00011101,2]
[400169992,1767167438328,-514.03369178,0.00011101,2]
[400169993,1767167438349,-116.37717952,0.00011101,2]
[400169994,1767167438358,-500.0,0.00011101,2]
[400169995,1767167438367,-630.4108713,0.00011101,2]
[400169996,1767167438376,-500.0,0.00011101,2]
[400169997,1767167438386,-630.4108713,0.00011101,2]
[400169998,1767167438395,-387.07634741,0.00011101,2]
[400169999,1767167438404,-630.4108713,0.00011101,2]
[400170000,1767167438414,-630.4108713,0.00011101,2]
[400170001,1767167438423,-630.4108713,0.00011101,2]
[400170002,1767167438433,-630.4108713,0.00011101,2]
[400170003,1767167438443,-630.4108713,0.00011101,2]
[400170004,1767167438453,-630.4108713,0.00011101,2]
[400170005,1767167438463,-630.4108713,0.00011101,2]
[400170006,1767167438476,-630.4108713,0.00011101,2]
[400170007,1767167438486,-630.4108713,0.00011101,2]
[400170008,1767167438496,-630.4108713,0.00011101,2]
[400170009,1767167438507,-630.4108713,0.00011101,2]
[400170010,1767167438516,-630.4108713,0.00011101,2]
[400170011,1767167438526,-630.4108713,0.00011101,2]
[400170012,1767167438535,-630.4108713,0.00011101,2]
[400170013,1767167438546,-630.4108713,0.00011101,2]
[400170014,1767167438556,-630.4108713,0.00011101,2]
[400170015,1767167438565,-630.4108713,0.00011101,2]
[400170016,1767167438575,-630.4108713,0.00011101,2]
[400170017,1767167438585,-630.4108713,0.00011101,2]
[400170018,1767167438594,-630.4108713,0.00011101,2]
[400170019,1767167438604,-630.4108713,0.00011101,2]
[400170020,1767167438613,-630.4108713,0.00011101,2]
[400170021,1767167438622,-630.4108713,0.00011101,2]
[400170022,1767167438632,-630.4108713,0.00011101,2]
[400170023,1767167438642,-500.0,0.00011101,2]
[400170024,1767167438651,-500.0,0.00011101,2]
[400170025,1767167438660,-500.0,0.00011101,2]
[400170026,1767167438670,-500.0,0.00011101,2]
[400170027,1767167438679,-500.0,0.00011101,2]
[400170028,1767167438689,-500.0,0.00011101,2]
[400170029,1767167438698,-500.0,0.00011101,2]
[400170030,1767167438708,-500.0,0.00011101,2]
[400170031,1767167438717,-500.0,0.00011101,2]
[400170032,1767167438727,-500.0,0.00011101,2]
[400170033,1767167438736,-500.0,0.00011101,2]